bitfinex/quotes_BTCUSD_20220105
["timestamp","ask_amount","ask_price","bid_price","bid_amount"]
[1641404352285,0.40094,46139.0,46138.0,0.01093053]
[1641404352586,0.50094,46139.0,46138.0,0.01093053]
[1641404352984,0.76138418,46139.0,46138.0,0.01101102]
[1641404353186,0.50094,46139.0,46138.0,0.01101102]
[1641404354486,0.89205383,46139.0,46138.0,0.01101102]
[1641404354689,1.4741374,46139.0,46138.0,0.01101102]
[1641404354891,1.16843809,46139.0,46138.0,0.01101102]
[1641404355130,1.1738146,46139.0,46138.0,0.01101102]
[1641404355328,1.41373844,46139.0,46137.0,0.00044]
[1641404355528,0.63304,46138.0,46137.0,0.00044]
[1641404355727,0.67604,46138.0,46137.0,0.00044]
[1641404355929,0.78141651,46138.0,46137.0,0.00044]
[1641404356429,1.50043327,46138.0,46137.0,0.00044]
[1641404356630,1.50043327,46138.0,46135.0,0.00033]
[1641404356828,0.63304,46136.0,46135.0,0.00011419]
[1641404357029,1.13990808,46136.0,46135.0,0.00011419]
[1641404357228,1.14528459,46136.0,46135.0,0.00011419]
[1641404357428,2.37444421,46136.0,46134.0,0.00332245]
[1641404357628,0.95240855,46135.0,46134.0,0.00332245]
[1641404357829,0.99540855,46135.0,46134.0,0.00332245]
[1641404358029,0.99540855,46135.0,46134.0,0.00277245]
[1641404358030,1.12141651,46135.0,46134.0,0.00277245]
[1641404358232,0.5581998,46133.0,46131.0,0.00700873]
[1641404358435,2.22066604,46132.0,46131.0,0.00011]
[1641404358730,0.53,46128.0,46127.0,0.00044]
[1641404358983,1.32609,46128.0,46127.0,0.00044]
[1641404359180,1.57671431,46128.0,46127.0,0.00044]
[1641404359381,2.70587393,46128.0,46127.0,0.00044]
[1641404359982,1.47671431,46128.0,46127.0,0.00044]
[1641404360381,1.48171431,46128.0,46127.0,0.00044]
[1641404360783,1.33646651,46128.0,46127.0,0.00044]
[1641404361083,1.33109,46128.0,46127.0,0.00044]
[1641404361281,1.33109,46128.0,46127.0,0.0016202]
[1641404361782,2.03811613,46128.0,46127.0,0.0016202]
[1641404362181,2.13811613,46128.0,46127.0,0.0016202]
[1641404362381,1.43209,46128.0,46127.0,0.0016202]
[1641404363227,1.43209,46128.0,46127.0,0.00170277]
[1641404363726,1.42609,46128.0,46127.0,0.00170277]
[1641404364326,1.43146651,46128.0,46127.0,0.00170277]
[1641404364527,1.43646651,46128.0,46127.0,0.00170277]
[1641404365629,1.43146651,46128.0,46127.0,0.00170277]
[1641404366386,1.42146651,46128.0,46127.0,0.00170277]
[1641404366578,1.42746651,46128.0,46127.0,0.00170277]
[1641404367781,1.42146651,46128.0,46127.0,0.00170277]
[1641404368383,1.42646651,46128.0,46127.0,0.00170277]
[1641404369786,1.42146651,46128.0,46127.0,0.00170277]
[1641404370528,1.42746651,46128.0,46127.0,0.00170277]
[1641404371730,1.42146651,46128.0,46127.0,0.00170277]
[1641404372532,1.42646651,46128.0,46127.0,0.00170277]
[1641404373232,1.62646651,46128.0,46127.0,0.00159277]
[1641404373432,2.26646651,46128.0,46127.0,0.00159277]
[1641404373884,0.16270468,46123.0,46114.0,0.00356265]
[1641404374084,0.633103,46121.0,46114.0,0.00356265]
[1641404374284,0.676103,46121.0,46115.0,0.01464667]
[1641404374587,0.78147951,46121.0,46115.0,0.01464667]
[1641404375187,0.77647951,46121.0,46115.0,0.01464667]
[1641404375985,0.77147951,46121.0,46116.0,0.06755337]
[1641404376490,1.998113,46120.0,46104.0,0.00340775]
[1641404376689,1.998113,46120.0,46102.0,7.775e-05]
[1641404376690,0.2,46104.0,46102.0,7.775e-05]
[1641404376991,1.32743486,46103.0,46102.0,7.775e-05]
[1641404377191,1.33281137,46103.0,46101.0,0.00272177]
[1641404377386,0.633124,46102.0,46101.0,0.00272177]
[1641404377633,1.426174,46102.0,46101.0,0.00272177]
[1641404377834,1.326174,46102.0,46101.0,0.00272177]
[1641404378035,1.380414,46102.0,46101.0,0.00272177]
[1641404378235,1.380414,46102.0,46100.0,0.34070774]
[1641404378236,1.02239,46102.0,46100.0,0.07240177]
[1641404378436,0.358024,46101.0,46100.0,0.07240177]
[1641404378636,0.401024,46101.0,46100.0,0.39266951]
[1641404378835,0.00122315,46102.0,46100.0,0.39266951]
[1641404379134,0.0554673,46107.0,46101.0,0.466488]
[1641404379334,0.0554673,46107.0,46102.0,0.15361414]
[1641404379533,0.054233,46104.0,46102.0,0.47388188]
[1641404379741,0.0124673,46107.0,46103.0,1.2216146]
[1641404379935,0.043,46118.0,46103.0,1.2216146]
[1641404379936,0.043,46118.0,46106.0,0.07]
[1641404380136,0.03,46123.0,46114.0,0.108435]
[1641404380137,0.00125042,46123.0,46114.0,0.108435]
[1641404380335,0.353024,46122.0,46114.0,0.108435]
[1641404380536,0.025,46118.0,46117.0,0.11808364]
[1641404381137,0.025,46118.0,46117.0,0.10918623]
[1641404381779,0.054218,46120.0,46117.0,0.10918623]
[1641404381978,0.054218,46120.0,46118.0,0.054217]
[1641404382581,0.062218,46120.0,46118.0,0.054217]
[1641404382779,0.052218,46120.0,46118.0,0.054217]
[1641404383782,0.35963266,46119.0,46108.0,0.06429409]
[1641404383983,0.35963266,46119.0,46100.0,0.01816177]
[1641404383984,0.2751,46109.0,46100.0,0.01816177]
[1641404384183,0.2751,46105.0,46100.0,0.01816177]
[1641404384384,0.05537651,46118.0,46100.0,0.01816177]
[1641404384385,0.043,46104.0,46100.0,0.14240277]
[1641404384580,0.00120251,46107.0,46101.0,0.358032]
[1641404384781,0.043,46106.0,46102.0,0.11816685]
[1641404384984,0.097242,46105.0,46102.0,0.11816685]
[1641404385236,0.003,46109.0,46104.0,0.02]
[1641404385536,0.59204996,46121.0,46106.0,0.02]
[1641404385537,0.59325632,46121.0,46106.0,0.02]
[1641404385736,0.59325632,46121.0,46109.0,0.02]
[1641404385933,0.59325632,46121.0,46105.0,0.36663266]
[1641404385934,0.358032,46120.0,46105.0,0.31663266]
[1641404386235,0.054222,46114.0,46112.0,0.16519042]
[1641404387334,0.008,46120.0,46112.0,0.16519042]
[1641404387836,0.08,46123.0,46113.0,0.29170199]
[1641404388035,0.054213,46122.0,46112.0,0.16519042]
[1641404388338,0.00129652,46112.0,46111.0,0.00099031]
[1641404388535,0.00129652,46112.0,46100.0,0.01816177]
[1641404388536,0.31939652,46112.0,46100.0,0.01816177]
[1641404388737,0.08,46101.0,46100.0,0.01816177]
[1641404388988,0.123,46101.0,46100.0,0.01816177]
[1641404389187,0.53527,46101.0,46100.0,0.13705419]
[1641404389385,0.53341182,46101.0,46100.0,0.13705419]
[1641404389586,0.45527,46101.0,46100.0,0.13705419]
[1641404390488,0.46227,46101.0,46100.0,0.13705419]
[1641404390786,0.73737,46101.0,46100.0,0.13705419]
[1641404391786,0.24530743,46108.0,46100.0,0.13705419]
[1641404391787,0.06747582,46109.0,46100.0,0.16957837]
[1641404391986,0.043,46109.0,46100.0,0.17081228]
[1641404392384,0.5933494,46115.0,46100.0,0.17081228]
[1641404392385,0.6363494,46115.0,46100.0,0.17081228]
[1641404392636,0.012,46109.0,46100.0,2.61518339]
[1641404392830,0.012,46109.0,46101.0,0.358033]
[1641404393031,0.07947582,46109.0,46108.0,0.16227605]
[1641404393632,0.012,46109.0,46108.0,0.16227605]
[1641404393831,0.054226,46110.0,46108.0,0.16227605]
[1641404394230,0.054226,46110.0,46109.0,0.29721137]
[1641404394431,0.054226,46110.0,46109.0,0.2985588]
[1641404394732,0.054226,46110.0,46108.0,0.16227605]
[1641404394733,0.009,46110.0,46108.0,0.16227605]
[1641404395132,0.009,46110.0,46109.0,9.088e-05]
[1641404395731,0.054221,46113.0,46109.0,9.088e-05]
[1641404396588,0.065221,46113.0,46109.0,9.088e-05]
[1641404396786,0.06747582,46110.0,46109.0,9.088e-05]
[1641404398387,0.53396882,46110.0,46109.0,9.088e-05]
[1641404398588,0.63896882,46110.0,46109.0,9.088e-05]
[1641404398788,0.53050882,46110.0,46109.0,9.088e-05]
[1641404398989,0.58473782,46110.0,46109.0,9.088e-05]
[1641404399789,0.57973782,46110.0,46109.0,9.088e-05]
[1641404400636,0.58573782,46110.0,46109.0,9.088e-05]
[1641404401835,0.57973782,46110.0,46109.0,9.088e-05]
[1641404402537,0.58473782,46110.0,46109.0,9.088e-05]
[1641404403437,0.58326463,46110.0,46109.0,9.088e-05]
[1641404403879,0.57826463,46110.0,46109.0,9.088e-05]
[1641404404481,0.58326463,46110.0,46109.0,9.088e-05]
[1641404405785,0.57826463,46110.0,46109.0,9.088e-05]
[1641404406583,0.58326463,46110.0,46109.0,9.088e-05]
[1641404406985,1.29529076,46110.0,46109.0,9.088e-05]
[1641404407486,0.58326463,46110.0,46109.0,9.088e-05]
[1641404407735,0.57826463,46110.0,46109.0,9.088e-05]
[1641404407935,0.47826463,46110.0,46109.0,9.088e-05]
[1641404408138,0.42403563,46110.0,46109.0,9.088e-05]
[1641404408343,0.83057458,46111.0,46109.0,0.15396903]
[1641404408542,0.83057458,46111.0,46109.0,0.2379664]
[1641404408737,0.83057458,46111.0,46110.0,1.44]
[1641404408937,0.71298371,46113.0,46110.0,0.358033]
[1641404409138,0.71298371,46113.0,46112.0,0.00124802]
[1641404409436,0.83057458,46115.0,46112.0,0.00124802]
[1641404409640,0.71430384,46121.0,46113.0,0.358033]
[1641404409837,0.71430384,46121.0,46119.0,0.00124599]
[1641404410038,0.71430384,46121.0,46116.0,0.054207]
[1641404410239,0.83057458,46123.0,46118.0,0.00127883]
[1641404410438,0.06600263,46127.0,46119.0,0.13804047]
[1641404410642,0.89983041,46127.0,46119.0,0.13804047]
[1641404410942,0.83382778,46127.0,46119.0,0.13804047]
[1641404411140,0.06600263,46126.0,46119.0,0.13804047]
[1641404411388,0.42417232,46128.0,46119.0,0.13804047]
[1641404411389,0.06600263,46120.0,46119.0,0.13804047]
[1641404411588,0.06600263,46125.0,46119.0,0.13804047]
[1641404411989,0.06600263,46125.0,46120.0,0.054205]
[1641404412191,0.06600263,46125.0,46119.0,0.13804047]
[1641404412591,0.07100263,46125.0,46119.0,0.13804047]
[1641404412989,0.07100263,46125.0,46120.0,0.054204]
[1641404413593,0.005,46125.0,46120.0,0.054204]
[1641404413788,0.06676554,46131.0,46120.0,0.054204]
[1641404413789,0.06600263,46126.0,46120.0,0.054204]
[1641404413992,0.01256254,46131.0,46120.0,0.054204]
[1641404414192,0.06600263,46130.0,46125.0,0.054198]
[1641404415433,0.01,46131.0,46127.0,0.16226439]
[1641404415633,0.01,46131.0,46128.0,0.224218]
[1641404415836,0.06600263,46129.0,46128.0,0.224218]
[1641404416034,0.06600263,46136.0,46128.0,0.219218]
[1641404416236,0.06600263,46136.0,46129.0,0.00127944]
[1641404416634,0.06600263,46133.0,46129.0,0.00127944]
[1641404416834,0.06600263,46133.0,46130.0,0.357994]
[1641404417034,0.06600263,46133.0,46131.0,0.054193]
[1641404417235,0.07900263,46136.0,46132.0,0.219208]
[1641404417436,0.07900263,46136.0,46131.0,0.054193]
[1641404417437,0.013,46136.0,46131.0,0.054193]
[1641404417636,0.013,46136.0,46135.0,0.00121049]
[1641404417837,0.06600263,46139.0,46135.0,0.00121049]
[1641404417838,0.06600263,46139.0,46135.0,0.35920449]
[1641404418037,0.06600263,46139.0,46135.0,0.00121049]
[1641404418237,1.04925821,46144.0,46135.0,0.00121049]
[1641404418238,0.56145484,46143.0,46138.0,0.12952625]
[1641404418439,1.04925821,46144.0,46138.0,0.12952625]
[1641404418440,0.06600263,46139.0,46138.0,0.12952625]
[1641404418638,0.08500263,46139.0,46138.0,0.12952625]
[1641404418893,0.08000263,46139.0,46138.0,0.12952625]
[1641404419089,0.08000263,46139.0,46138.0,0.13074516]
[1641404419288,0.019,46139.0,46138.0,0.13074516]
[1641404419491,0.019,46139.0,46138.0,0.48873916]
[1641404419889,0.32006736,46147.0,46138.0,0.48873916]
[1641404420190,0.06100263,46148.0,46146.0,0.14390956]
[1641404420394,0.004,46149.0,46147.0,0.00123882]
[1641404420593,0.0001,46149.0,46148.0,0.70927672]
[1641404420990,0.0001,46149.0,46148.0,0.35927672]
[1641404421193,0.0001,46149.0,46148.0,0.72934408]
[1641404421394,0.0001,46149.0,46148.0,1.87334408]
[1641404421591,0.06500263,46159.0,46153.0,0.87525286]
[1641404421791,0.06500263,46159.0,46154.0,0.357947]
[1641404421989,0.06500263,46159.0,46157.0,0.00121762]
[1641404422191,0.01,46164.0,46158.0,0.21891]
[1641404422391,0.01,46164.0,46163.0,0.00129157]
[1641404423436,0.01,46164.0,46163.0,0.35928557]
[1641404424140,0.01,46164.0,46163.0,0.00129157]
[1641404424337,0.01,46164.0,46163.0,0.35928557]
[1641404424537,0.017,46164.0,46163.0,0.67142398]
[1641404425836,0.017,46164.0,46163.0,0.67042398]
[1641404426038,0.01,46164.0,46163.0,0.67042398]
[1641404426240,0.01,46164.0,46163.0,0.72042398]
[1641404426484,0.004,46169.0,46164.0,0.53]
[1641404426789,0.004,46169.0,46165.0,1.416894]
[1641404426983,0.004,46169.0,46168.0,0.00125859]
[1641404427185,0.004,46169.0,46168.0,0.35920959]
[1641404428684,0.006,46169.0,46168.0,0.36920959]
[1641404429288,0.006,46169.0,46168.0,0.67688779]
[1641404429883,0.004,46169.0,46168.0,0.66688779]
[1641404430540,0.006,46169.0,46168.0,0.67688779]
[1641404430743,0.006,46169.0,46168.0,0.36920959]
[1641404431145,0.006,46169.0,46168.0,0.01]
[1641404431348,0.36661518,46169.0,46168.0,0.01]
[1641404431645,0.99573623,46169.0,46168.0,0.01]
[1641404431845,0.99373623,46169.0,46160.0,0.01251401]
[1641404432045,0.05417154,46165.0,46160.0,0.01251401]
[1641404432243,0.2378408,46163.0,46156.0,0.16351853]
[1641404432444,0.054172,46160.0,46156.0,0.16351853]
[1641404433442,0.59775994,46158.0,46156.0,0.16351853]
[1641404433641,0.054174,46157.0,46152.0,0.00129161]
[1641404433888,0.054174,46157.0,46148.0,0.84247839]
[1641404434091,0.65193394,46157.0,46148.0,0.108349]
[1641404434589,0.75393394,46157.0,46149.0,0.13254887]
[1641404434990,0.59775994,46156.0,46153.0,0.054174]
[1641404435391,0.69775994,46156.0,46153.0,0.054174]
[1641404435692,0.59775994,46155.0,46153.0,0.054174]
[1641404436291,1.129548,46155.0,46153.0,0.054174]
[1641404436493,0.054177,46153.0,46150.0,0.10834]
[1641404437191,0.53278806,46155.0,46150.0,0.10834]
[1641404437639,0.59775994,46153.0,46150.0,0.10834]
[1641404438032,0.59775994,46154.0,46150.0,0.10834]
[1641404438433,0.1,46154.0,46150.0,0.10834]
[1641404438632,0.101,46154.0,46150.0,0.12334]
[1641404439647,0.59875994,46154.0,46150.0,0.12334]
[1641404439835,0.59775994,46154.0,46150.0,0.10834]
[1641404440036,0.69775994,46154.0,46150.0,0.10834]
[1641404440236,0.054176,46153.0,46150.0,0.10834]
[1641404440638,0.054176,46153.0,46150.0,0.12334]
[1641404441895,0.054176,46153.0,46150.0,0.015]
[1641404442400,0.043,46152.0,46145.0,0.108355]
[1641404442592,0.054184,46149.0,46138.0,0.00128445]
[1641404442793,0.054184,46149.0,46138.0,0.5]
[1641404442794,0.19200691,46144.0,46138.0,0.5]
[1641404442992,0.043,46143.0,46138.0,0.5]
[1641404443193,0.11903407,46141.0,46138.0,0.5]
[1641404443594,0.22322807,46141.0,46138.0,0.5]
[1641404443792,0.22322807,46141.0,46130.0,0.30252561]
[1641404443996,0.49509157,46141.0,46130.0,0.00122561]
[1641404444493,0.59509157,46141.0,46130.0,0.00122561]
[1641404444693,0.357994,46140.0,46130.0,0.01922561]
[1641404444897,0.357994,46140.0,46133.0,0.108384]
[1641404444898,0.35928546,46140.0,46133.0,0.108384]
[1641404445164,0.45928546,46140.0,46133.0,0.108384]
[1641404445654,0.16384763,46134.0,46133.0,0.108384]
[1641404446456,0.054197,46136.0,46133.0,0.108384]
[1641404446655,0.008,46134.0,46133.0,0.108384]
[1641404447754,0.054197,46136.0,46133.0,0.108384]
[1641404448156,0.054197,46136.0,46130.0,0.016776]
[1641404448656,0.062197,46136.0,46130.0,0.016776]
[1641404448890,0.062197,46136.0,46133.0,0.108384]
[1641404449892,0.054197,46136.0,46133.0,0.108384]
[1641404450693,0.008,46136.0,46133.0,0.108384]
[1641404451793,0.008,46136.0,46134.0,0.108386]
[1641404451994,0.15659205,46141.0,46137.0,0.054193]
[1641404452194,0.357994,46140.0,46137.0,0.054193]
[1641404452740,0.412186,46140.0,46137.0,0.054193]
[1641404453337,0.412186,46140.0,46138.0,6.566e-05]
[1641404454738,0.416186,46140.0,46138.0,6.566e-05]
[1641404455740,0.459186,46140.0,46138.0,6.566e-05]
[1641404455938,0.455186,46140.0,46138.0,6.566e-05]
[1641404456585,0.459186,46140.0,46138.0,6.566e-05]
[1641404456785,0.559186,46140.0,46138.0,6.566e-05]
[1641404457787,0.555186,46140.0,46138.0,6.566e-05]
[1641404458585,0.561186,46140.0,46138.0,6.566e-05]
[1641404459987,0.555186,46140.0,46138.0,6.566e-05]
[1641404460643,0.560186,46140.0,46138.0,6.566e-05]
[1641404461841,0.40945121,46139.0,46138.0,6.566e-05]
[1641404462041,0.91044521,46139.0,46138.0,6.566e-05]
[1641404462242,0.500994,46139.0,46138.0,6.566e-05]
[1641404462641,0.505994,46139.0,46138.0,6.566e-05]
[1641404463887,0.500994,46139.0,46138.0,6.566e-05]
[1641404464290,0.49657722,46139.0,46138.0,6.566e-05]
[1641404464592,0.50157722,46139.0,46138.0,6.566e-05]
[1641404465791,0.49657722,46139.0,46138.0,6.566e-05]
[1641404466190,0.79655694,46139.0,46138.0,6.566e-05]
[1641404466391,0.84237729,46139.0,46138.0,6.566e-05]
[1641404466588,0.55157722,46139.0,46138.0,6.566e-05]
[1641404467190,0.50157722,46139.0,46138.0,6.566e-05]
[1641404467740,0.55157722,46139.0,46138.0,6.566e-05]
[1641404467939,0.54657722,46139.0,46138.0,6.566e-05]
[1641404468443,0.84395985,46139.0,46138.0,6.566e-05]
[1641404468639,0.84895985,46139.0,46138.0,6.566e-05]
[1641404468839,0.79895985,46139.0,46138.0,6.566e-05]
[1641404469140,0.50157722,46139.0,46138.0,6.566e-05]
[1641404469940,0.49657722,46139.0,46138.0,6.566e-05]
[1641404470741,0.50157722,46139.0,46138.0,6.566e-05]
[1641404471396,1.63593204,46139.0,46138.0,6.566e-05]
[1641404471601,0.71,46138.0,46125.0,0.12097752]
[1641404471794,0.2159,46134.0,46125.0,0.01256252]
[1641404471995,0.00127472,46126.0,46125.0,0.01256252]
[1641404472194,0.04427472,46126.0,46121.0,0.00022]
[1641404472498,0.57319341,46126.0,46121.0,0.00022]
[1641404472693,0.357996,46125.0,46121.0,0.00022]
[1641404472993,0.043,46124.0,46121.0,0.00022]
[1641404473194,0.357996,46123.0,46121.0,0.00022]
[1641404473393,0.043,46122.0,46121.0,0.00022]
[1641404473597,0.400996,46122.0,46121.0,0.00022]
[1641404473793,0.71152987,46122.0,46121.0,0.00022]
[1641404473995,0.550996,46122.0,46121.0,0.00022]
[1641404474593,0.556996,46122.0,46121.0,0.00022]
[1641404475945,0.550996,46122.0,46121.0,0.00022]
[1641404476347,0.550996,46122.0,46106.0,0.1656172]
[1641404476550,0.043,46122.0,46119.0,0.054222]
[1641404476748,0.006,46122.0,46120.0,0.05420911]
[1641404476947,0.006,46122.0,46121.0,0.357996]
[1641404477348,0.006,46122.0,46121.0,0.987996]
[1641404477548,0.006,46122.0,46121.0,0.48548315]
[1641404477948,0.01256297,46127.0,46123.0,0.054203]
[1641404478248,0.01256297,46127.0,46125.0,0.054205]
[1641404478650,0.02156297,46127.0,46125.0,0.054205]
[1641404478900,0.02156297,46127.0,46126.0,0.29653855]
[1641404479098,0.00124207,46137.0,46126.0,1.23653855]
[1641404479296,0.9949,46142.0,46130.0,0.00124228]
[1641404479498,0.9949,46142.0,46135.0,0.054188]
[1641404479696,0.00121214,46148.0,46130.0,0.00124228]
[1641404479895,0.66583277,46144.0,46137.0,0.13844418]
[1641404480097,0.66583277,46144.0,46138.0,0.108378]
[1641404480098,0.72001977,46144.0,46138.0,0.108378]
[1641404480295,0.10958814,46148.0,46139.0,0.0541862]
[1641404480502,1.146,46155.0,46143.0,0.00125614]
[1641404480700,0.017,46144.0,46143.0,0.00125614]
[1641404481098,0.017,46144.0,46143.0,0.35925214]
[1641404481897,0.01256235,46151.0,46144.0,0.16458326]
[1641404482300,0.22380417,46152.0,46144.0,0.16458326]
[1641404482639,0.023,46151.0,46144.0,0.16558326]
[1641404482842,0.023,46151.0,46146.0,0.16252494]
[1641404483241,0.023,46151.0,46146.0,0.10834994]
[1641404483746,0.023,46151.0,46146.0,0.054175]
[1641404483947,0.24862569,46154.0,46148.0,0.054178]
[1641404484143,0.77432112,46156.0,46148.0,0.054178]
[1641404484543,0.77432112,46156.0,46148.0,0.10835263]
[1641404484743,0.78132112,46156.0,46150.0,0.108353]
[1641404485147,0.054176,46154.0,46150.0,0.108353]
[1641404485344,0.20192685,46154.0,46150.0,0.162528]
[1641404485543,0.054176,46154.0,46150.0,0.162528]
[1641404485745,0.054176,46154.0,46150.0,0.108353]
[1641404486393,0.054176,46154.0,46153.0,0.054176]
[1641404486790,0.060176,46154.0,46153.0,0.054176]
[1641404487591,0.006,46154.0,46153.0,0.054176]
[1641404487991,0.10957792,46160.0,46153.0,0.054176]
[1641404488192,0.10957792,46160.0,46156.0,0.054171]
[1641404488392,0.357996,46159.0,46154.0,0.108342]
[1641404488595,0.1,46159.0,46154.0,0.108342]
[1641404489591,0.1,46159.0,46154.0,0.10959983]
[1641404489792,0.021,46160.0,46154.0,0.10959983]
[1641404489991,0.05417,46160.0,46157.0,0.054172]
[1641404490242,0.357996,46159.0,46157.0,0.054172]
[1641404490643,0.457996,46159.0,46157.0,0.054172]
[1641404491643,0.91142051,46159.0,46157.0,0.054172]
[1641404492643,0.96742051,46159.0,46157.0,0.054172]
[1641404493996,0.96142051,46159.0,46157.0,0.054172]
[1641404494796,0.96742051,46159.0,46157.0,0.054172]
[1641404495999,0.96142051,46159.0,46157.0,0.054172]
[1641404496799,0.96742051,46159.0,46157.0,0.054172]
[1641404497503,0.91742051,46159.0,46157.0,0.054172]
[1641404498041,0.91142051,46159.0,46157.0,0.054172]
[1641404498642,0.91542051,46159.0,46157.0,0.054172]
[1641404500143,0.91142051,46159.0,46157.0,0.054172]
[1641404500543,0.55342451,46159.0,46157.0,0.054172]
[1641404500744,0.55842451,46159.0,46157.0,0.054172]
[1641404501790,0.357996,46158.0,46157.0,0.054172]
[1641404501991,0.054174,46158.0,46156.0,0.108341]
[1641404502195,0.154174,46158.0,46156.0,0.108341]
[1641404502792,0.160174,46158.0,46156.0,0.108341]
[1641404503393,0.060174,46158.0,46156.0,0.108341]
[1641404504191,0.054174,46158.0,46156.0,0.108341]
[1641404504798,0.059174,46158.0,46156.0,0.108341]
[1641404505243,0.357996,46157.0,46156.0,0.108341]
[1641404505739,0.457996,46157.0,46156.0,0.108341]
[1641404506743,0.464996,46157.0,46156.0,0.108341]
[1641404507943,0.457996,46157.0,46156.0,0.108341]
[1641404508145,0.81481486,46157.0,46156.0,0.108341]
[1641404508345,0.81481486,46157.0,46138.0,0.216694]
[1641404508346,0.91481486,46157.0,46152.0,0.054184]
[1641404508646,0.91481486,46157.0,46139.0,0.1083603]
[1641404508898,0.51181886,46157.0,46141.0,0.5]
[1641404509098,0.24337555,46151.0,46143.0,0.14572327]
[1641404509302,0.29337555,46151.0,46145.0,0.108375]
[1641404510106,0.054185,46148.0,46145.0,0.108375]
[1641404510701,0.074185,46148.0,46145.0,0.108375]
[1641404510900,0.043,46147.0,46145.0,0.108375]
[1641404511103,0.34214919,46147.0,46145.0,0.108375]
[1641404511302,0.151379,46147.0,46145.0,0.108375]
[1641404511502,0.251379,46147.0,46145.0,0.108375]
[1641404511904,0.301379,46147.0,46145.0,0.108375]
[1641404512103,0.351379,46147.0,46145.0,0.108375]
[1641404512403,0.243,46147.0,46145.0,0.108375]
[1641404512664,0.043,46153.0,46145.0,0.108375]
[1641404512862,0.026,46147.0,46146.0,0.00122598]
[1641404513060,0.026,46147.0,46146.0,0.35922198]
[1641404513463,0.18802613,46163.0,46160.0,0.054171]
[1641404513660,0.357996,46162.0,46160.0,0.054171]
[1641404513860,0.31381886,46161.0,46160.0,0.054171]
[1641404514059,0.67181486,46161.0,46160.0,0.054171]
[1641404514259,0.67181486,46161.0,46158.0,0.108341]
[1641404514458,0.357996,46160.0,46158.0,0.108341]
[1641404514759,0.412171,46160.0,46158.0,0.108341]
[1641404514960,0.562171,46160.0,46158.0,0.108341]
[1641404515158,0.512171,46160.0,46158.0,0.108341]
[1641404516160,0.562171,46160.0,46158.0,0.108341]
[1641404516392,0.605171,46160.0,46158.0,0.108341]
[1641404516791,0.628171,46160.0,46158.0,0.108341]
[1641404516992,0.578171,46160.0,46158.0,0.108341]
[1641404518092,0.555171,46160.0,46158.0,0.108341]
[1641404518791,0.567171,46160.0,46158.0,0.108341]
[1641404519592,0.617171,46160.0,46158.0,0.108341]
[1641404519993,0.605171,46160.0,46158.0,0.108341]
[1641404520242,0.71741008,46159.0,46158.0,0.108341]
[1641404520449,0.555171,46160.0,46157.0,0.05539517]
[1641404520450,0.71741008,46160.0,46157.0,0.05539517]
[1641404520842,0.014,46159.0,46158.0,0.002]
[1641404522045,0.59021408,46161.0,46158.0,0.05416142]
[1641404522244,0.59021408,46162.0,46158.0,0.05416142]
[1641404522442,0.59021408,46162.0,46160.0,0.054156]
[1641404522642,0.59021408,46162.0,46161.0,0.29993623]
[1641404522844,0.006,46162.0,46161.0,0.29993623]
[1641404523046,0.006,46162.0,46161.0,0.65793223]
[1641404523543,0.006,46162.0,46161.0,0.70793223]
[1641404524193,0.60282387,46168.0,46163.0,0.054157]
[1641404524395,0.60282387,46168.0,46165.0,0.054156]
[1641404524794,0.61482387,46168.0,46165.0,0.054156]
[1641404525094,0.71482387,46168.0,46165.0,0.051156]
[1641404525296,0.71482387,46168.0,46166.0,0.05415548]
[1641404525496,0.71482387,46168.0,46167.0,0.00122422]
[1641404526095,0.61482387,46168.0,46167.0,0.00122422]
[1641404526295,0.60221408,46168.0,46167.0,0.63681307]
[1641404526696,0.59021408,46168.0,46167.0,0.29681307]
[1641404526897,0.011,46168.0,46167.0,0.41011307]
[1641404527498,0.011,46168.0,46167.0,0.40711307]
[1641404527744,0.004,46169.0,46167.0,0.40711307]
[1641404527943,0.004,46169.0,46168.0,0.31487211]
[1641404528142,0.004,46169.0,46168.0,0.67286811]
[1641404528748,0.004,46169.0,46168.0,1.87801311]
[1641404529145,0.59021408,46174.0,46170.0,1.19814]
[1641404529346,0.59021408,46174.0,46173.0,0.00127175]
[1641404529544,0.15712208,46174.0,46173.0,0.00127175]
[1641404529745,0.01260959,46175.0,46173.0,0.00127175]
[1641404529943,0.01260959,46175.0,46174.0,0.357996]
[1641404530147,0.15712208,46177.0,46174.0,0.55192502]
[1641404530345,0.004,46179.0,46176.0,0.00121413]
[1641404530546,0.71741008,46181.0,46178.0,0.00129115]
[1641404530744,0.71741008,46181.0,46180.0,0.00123004]
[1641404531145,0.1,46181.0,46180.0,0.00123004]
[1641404531605,1.1783182,46185.0,46180.0,0.00123004]
[1641404532003,1.1783182,46185.0,46175.0,0.01265731]
[1641404532405,0.24513256,46184.0,46175.0,0.01265731]
[1641404532605,0.054144,46181.0,46179.0,0.108288]
[1641404533612,0.29508064,46180.0,46179.0,0.108288]
[1641404533806,0.65307664,46180.0,46176.0,0.054153]
[1641404534005,0.054154,46179.0,46176.0,0.054153]
[1641404534608,0.77156408,46179.0,46176.0,0.054153]
[1641404534805,0.77256408,46179.0,46176.0,0.059153]
[1641404535006,0.71741008,46178.0,46176.0,0.059153]
[1641404535444,0.86741008,46178.0,46176.0,0.059153]
[1641404535644,0.81741008,46178.0,46176.0,0.059153]
[1641404536044,0.71741008,46178.0,46176.0,0.059153]
[1641404536248,0.71741008,46178.0,46176.0,0.054153]
[1641404536445,0.71741008,46179.0,46176.0,0.054153]
[1641404536844,0.014,46178.0,46176.0,0.058153]
[1641404537646,0.014,46178.0,46176.0,0.112299]
[1641404538047,0.054145,46181.0,46177.0,0.054143]
[1641404538249,0.81741008,46182.0,46177.0,0.054143]
[1641404538649,0.71741008,46182.0,46177.0,0.054143]
[1641404538907,0.72241008,46182.0,46177.0,0.060143]
[1641404539098,0.005,46182.0,46179.0,0.054143]
[1641404539300,0.054145,46181.0,46179.0,0.054143]
[1641404539699,0.64048932,46181.0,46179.0,0.054143]
[1641404539898,0.357996,46180.0,46179.0,0.054143]
[1641404540105,0.457996,46180.0,46177.0,0.054143]
[1641404540302,0.054147,46179.0,46177.0,0.054143]
[1641404540799,0.060147,46179.0,46177.0,0.055143]
[1641404541202,0.64649132,46179.0,46177.0,0.055143]